fUSD/lending_fUSD_20250617
["ID","MTS","AMOUNT","RATE_DAILY","PERIOD"]
[366288690,1750175441873,-490.0,0.00016438,2]
[366288691,1750175441883,-490.0,0.00016438,2]
[366288692,1750175441894,-490.0,0.00016438,2]
[366288693,1750175441904,-490.0,0.00016438,2]
[366288694,1750175441914,-490.0,0.00016438,2]
[366288695,1750175441923,-490.0,0.00016438,2]
[366288696,1750175441934,-490.0,0.00016438,2]
[366288697,1750175441944,-392.8618455,0.00016438,2]
[366288698,1750175441955,-490.0,0.00016438,2]
[366288699,1750175441965,-490.0,0.00016438,2]
[366288700,1750175441975,-606.19,0.00016438,2]
[366288701,1750175441984,-490.0,0.00016438,2]
[366288702,1750175441995,-490.0,0.00016438,2]
[366288703,1750175442005,-490.0,0.00016438,2]
[366288704,1750175442015,-490.0,0.00016438,2]
[366288705,1750175442025,-490.0,0.00016438,2]
[366288706,1750175442036,-490.0,0.00016438,2]
[366288707,1750175442047,-490.0,0.00016438,2]
[366288708,1750175442057,-490.0,0.00016438,2]
[366288709,1750175442066,-490.0,0.00016438,2]
[366288710,1750175442076,-490.0,0.00016438,2]
[366288711,1750175442085,-490.0,0.00016438,2]
[366288712,1750175442095,-454.12914243,0.00016438,2]
[366288713,1750175442106,-490.0,0.00016438,2]
[366288714,1750175442116,-477.7282493,0.00016438,2]
[366288715,1750175442125,-490.0,0.00016438,2]
[366288716,1750175442135,-490.0,0.00016438,2]
[366288717,1750175442146,-480.0,0.00016438,2]
[366288718,1750175442155,-490.0,0.00016438,2]
[366288719,1750175442164,-171.97895104,0.00016438,2]
[366288720,1750175442174,-490.0,0.00016438,2]
[366288721,1750175442184,-502.13308087,0.00016438,2]
[366288722,1750175442194,-440.0,0.00016438,2]
[366288723,1750175442204,-490.0,0.00016438,2]
[366288724,1750175442213,-490.0,0.00016438,2]
[366288725,1750175442224,-490.0,0.00016438,2]
[366288726,1750175442233,-490.0,0.00016438,2]
[366288727,1750175442243,-490.0,0.00016438,2]
[366288728,1750175442253,-490.0,0.00016438,2]
[366288729,1750175442262,-490.0,0.00016438,2]
[366288730,1750175442272,-490.0,0.00016438,2]
[366288731,1750175442282,-490.0,0.00016438,2]
[366288732,1750175442292,-188.44230489,0.00016438,2]
[366288750,1750175443462,-301.55769511,0.00016438,2]
[366288752,1750175443473,-490.0,0.00016438,2]
[366288753,1750175443483,-490.0,0.00016438,2]
[366288754,1750175443493,-490.0,0.00016438,2]
[366288755,1750175443503,-490.0,0.00016438,2]
[366288756,1750175443513,-400.60485309,0.00016438,2]
[366288757,1750175443583,-328.01514691,0.00016438,2]
[366288758,1750175443593,-93.71912973,0.00016438,2]
[366288759,1750175443605,-396.28087027,0.00016438,2]
[366288760,1750175443615,-304.01066377,0.00016438,2]
[366288761,1750175443652,-185.98933623,0.00016438,2]
[366288762,1750175443663,-157.93666377,0.00016438,2]
[366288763,1750175443674,-332.06333623,0.00016438,2]
[366288764,1750175443684,-495.33238363,0.00016438,2]
[366288765,1750175443694,-490.0,0.00016438,2]
[366288766,1750175443704,-503.82287844,0.00016438,2]
[366288767,1750175443717,-35.99712156,0.00016438,2]
[366288768,1750175443726,-490.0,0.00016438,2]
[366288769,1750175443737,-490.0,0.00016438,2]
[366288770,1750175443748,-500.0,0.00016438,2]
[366288771,1750175443757,-322.13348159,0.00016438,2]
[366288772,1750175443770,-104.50273565,0.00016438,2]
[366288783,1750175444059,-490.0,0.00016438,2]
[366288785,1750175444071,-678.51,0.00016438,2]
[366288787,1750175444082,-32.15285719,0.00016438,2]
[366288875,1750175446352,-457.84714281,0.00016438,2]
[366288876,1750175446363,-490.0,0.00016438,2]
[366288877,1750175446373,-909.96,0.00016438,2]
[366288878,1750175446383,-490.0,0.00016438,2]
[366288879,1750175446393,-490.0,0.00016438,2]
[366288880,1750175446403,-490.0,0.00016438,2]
[366288881,1750175446414,-490.0,0.00016438,2]
[366288882,1750175446424,-490.0,0.00016438,2]
[366288883,1750175446435,-490.0,0.00016438,2]
[366288884,1750175446445,-490.0,0.00016438,2]
[366288885,1750175446455,-490.0,0.00016438,2]
[366288886,1750175446464,-490.0,0.00016438,2]
[366288887,1750175446474,-490.0,0.00016438,2]
[366288888,1750175446483,-490.0,0.00016438,2]
[366288889,1750175446493,-490.0,0.00016438,2]
[366288890,1750175446504,-490.0,0.00016438,2]
[366288891,1750175446513,-490.0,0.00016438,2]
[366288892,1750175446523,-490.0,0.00016438,2]
[366288893,1750175446533,-490.0,0.00016438,2]
[366288894,1750175446543,-490.0,0.00016438,2]
[366288895,1750175446553,-490.0,0.00016438,2]
[366288896,1750175446564,-490.0,0.00016438,2]
[366288897,1750175446575,-490.0,0.00016438,2]
[366288898,1750175446586,-490.0,0.00016438,2]
[366288899,1750175446595,-490.0,0.00016438,2]
[366288900,1750175446605,-490.0,0.00016438,2]
[366288901,1750175446615,-490.0,0.00016438,2]
[366288902,1750175446625,-595.25,0.00016438,2]
[366288903,1750175446635,-490.0,0.00016438,2]
[366288904,1750175446645,-490.0,0.00016438,2]
[366288905,1750175446656,-490.0,0.00016438,2]
[366288906,1750175446666,-582.40134863,0.00016438,2]
[366288907,1750175446675,-573.34,0.00016438,2]
[366288908,1750175446685,-490.0,0.00016438,2]
[366288909,1750175446695,-490.0,0.00016438,2]
[366288910,1750175446705,-490.0,0.00016438,2]
[366288911,1750175446714,-490.0,0.00016438,2]
[366288912,1750175446724,-490.0,0.00016438,2]
[366288913,1750175446733,-490.0,0.00016438,2]
[366288914,1750175446743,-490.0,0.00016438,2]
[366288915,1750175446753,-490.0,0.00016438,2]
[366288916,1750175446763,-768.44,0.00016438,2]
[366288917,1750175446773,-1098.18,0.00016438,2]
[366288918,1750175446782,-490.0,0.00016438,2]
[366288919,1750175446792,-566.82,0.00016438,2]
[366288920,1750175446802,-490.0,0.00016438,2]
[366288921,1750175446813,-1161.84,0.00016438,2]
[366288922,1750175446823,-490.0,0.00016438,2]
[366288923,1750175446832,-490.0,0.00016438,2]
[366288924,1750175446842,-490.0,0.00016438,2]
[366288925,1750175446852,-490.0,0.00016438,2]
[366288926,1750175446862,-364.78429813,0.00016438,2]
[366288927,1750175446872,-490.0,0.00016438,2]
[366288928,1750175446882,-490.0,0.00016438,2]
[366288929,1750175446891,-490.0,0.00016438,2]
[366288930,1750175446901,-490.0,0.00016438,2]
[366288931,1750175446911,-490.0,0.00016438,2]
[366288932,1750175446921,-490.0,0.00016438,2]
[366288933,1750175446931,-490.0,0.00016438,2]
[366288934,1750175446942,-490.0,0.00016438,2]
[366288935,1750175446952,-265.58459563,0.00016438,2]
[366288936,1750175446961,-1425.83,0.00016438,2]
[366288937,1750175446972,-1192.25,0.00016438,2]
[366288938,1750175446981,-490.0,0.00016438,2]
[366288939,1750175446991,-490.0,0.00016438,2]
[366288940,1750175447001,-490.0,0.00016438,2]
[366288941,1750175447011,-490.0,0.00016438,2]
[366288942,1750175447022,-490.0,0.00016438,2]
[366288943,1750175447033,-490.0,0.00016438,2]
[366288944,1750175447043,-638.05,0.00016438,2]
[366288945,1750175447053,-490.0,0.00016438,2]
[366288946,1750175447062,-490.0,0.00016438,2]
[366288947,1750175447072,-1709.74,0.00016438,2]
[366288948,1750175447082,-2138.06,0.00016438,2]
[366288949,1750175447091,-490.0,0.00016438,2]
[366288950,1750175447101,-365.90291845,0.00016438,2]
[366288951,1750175447111,-855.06,0.00016438,2]
[366288952,1750175447121,-490.0,0.00016438,2]
[366288953,1750175447130,-490.0,0.00016438,2]
[366288954,1750175447140,-490.0,0.00016438,2]
[366288955,1750175447149,-238.17516621,0.00016438,2]
[366288956,1750175447159,-490.0,0.00016438,2]
[366288957,1750175447168,-490.0,0.00016438,2]
[366288958,1750175447179,-198.21701895,0.00016438,2]
[366288959,1750175447189,-490.0,0.00016438,2]
[366288960,1750175447198,-490.0,0.00016438,2]
[366288961,1750175447208,-490.0,0.00016438,2]
[366288962,1750175447217,-490.0,0.00016438,2]
[366288963,1750175447227,-490.0,0.00016438,2]
[366288964,1750175447237,-12.86693279,0.00016438,2]
[366288965,1750175449901,-608.14306721,0.00016438,2]
[366288966,1750175449911,-490.0,0.00016438,2]
[366288967,1750175449922,-490.0,0.00016438,2]
[366288968,1750175449933,-490.0,0.00016438,2]
[366288969,1750175449943,-490.0,0.00016438,2]
[366288970,1750175449953,-1130.49,0.00016438,2]
[366288971,1750175449963,-490.0,0.00016438,2]
[366288972,1750175449973,-639.0,0.00016438,2]
[366288973,1750175449983,-433.60103927,0.00016438,2]
[366288974,1750175449993,-490.0,0.00016438,2]
[366288975,1750175450002,-490.0,0.00016438,2]
[366288976,1750175450012,-192.65242076,0.00016438,2]
[366288977,1750175450022,-480.0,0.00016438,2]
[366288978,1750175450032,-490.0,0.00016438,2]
[366288979,1750175450042,-490.0,0.00016438,2]
[366288980,1750175450052,-490.0,0.00016438,2]
[366288981,1750175450061,-490.0,0.00016438,2]
[366288982,1750175450071,-490.0,0.00016438,2]
[366288983,1750175450087,-772.58,0.00016438,2]
[366288984,1750175450102,-490.0,0.00016438,2]
[366288985,1750175450112,-1076.07,0.00016438,2]
[366288986,1750175450122,-490.0,0.00016438,2]
[366288987,1750175450132,-1711.96,0.00016438,2]
[366288988,1750175450141,-1000.69,0.00016438,2]
[366288989,1750175450151,-490.0,0.00016438,2]
[366288990,1750175450161,-490.0,0.00016438,2]
[366288991,1750175450171,-490.0,0.00016438,2]
[366288992,1750175450181,-806.7,0.00016438,2]
[366288993,1750175450190,-490.0,0.00016438,2]
[366288994,1750175450200,-490.0,0.00016438,2]
[366288995,1750175450210,-530.9762026,0.00016438,2]
[366288996,1750175450219,-490.0,0.00016438,2]
[366288997,1750175450229,-490.0,0.00016438,2]
[366288998,1750175450239,-490.0,0.00016438,2]
[366288999,1750175450248,-490.0,0.00016438,2]
[366289000,1750175450258,-289.82064706,0.00016438,2]
[366289001,1750175450315,-200.17935294,0.00016438,2]
[366289002,1750175450328,-490.0,0.00016438,2]
[366289003,1750175450338,-490.0,0.00016438,2]
[366289004,1750175450348,-588.0,0.00016438,2]
[366289005,1750175450359,-319.22064706,0.00016438,2]
[366289007,1750175570836,153.92,0.000199,31]
[366289008,1750175570934,153.92,0.000199,31]
[366289009,1750175570991,153.92,0.000199,31]
[366289010,1750175571033,153.92,0.000199,31]
[366289011,1750175571078,153.92,0.000199,31]
[366289012,1750175571128,153.92,0.000199,31]
[366289013,1750175571178,153.92,0.000199,31]
[366289030,1750176032396,150.0,0.00024025,120]
[366289033,1750176174471,153.95,0.000199,31]
[366289034,1750176174520,153.95,0.000199,31]
[366289035,1750176174594,153.95,0.000199,31]
[366289036,1750176174642,153.95,0.000199,31]
[366289037,1750176174703,123.76466536,0.000199,31]
[366289038,1750176209778,400.0,0.00024657,120]
[366289039,1750176209962,3486.88871188,0.0001069,2]
[366289041,1750176275789,150.0,0.00021689,120]
[366289049,1750176450749,150.0,0.00023754,120]
[366289060,1750176631660,-296.9,0.00013699,2]
[366289061,1750176631671,-182.25861286,0.00014799,2]
[366289062,1750176631683,-95.17138714,0.00014899,2]
[366289063,1750176631698,-204.82861286,0.00014899,2]
[366289064,1750176631707,-300.0,0.00014899,2]
[366289065,1750176631718,-865.19729296,0.00014899,2]
[366289066,1750176631730,-334.80270704,0.00014899,2]
[366289067,1750176631740,-5166.63821296,0.000149,2]
[366289068,1750176631918,-3134.56003255,0.000149,2]
[366289081,1750176638488,-5486.33396143,0.000149,2]
[366289082,1750176638618,-251.71505,0.000149,2]
[366289083,1750176638630,-1043.5,0.000149,2]
[366289084,1750176638643,-8817.25274306,0.000149,2]
[366289085,1750176638653,-300.0,0.00014998,2]
[366289086,1750176638664,-250.0,0.00015,2]
[366289087,1750176638674,-500.0,0.00015068,2]
[366289088,1750176638685,-250.0,0.00015068,2]
[366289089,1750176638698,-300.0,0.00015068,2]
[366289090,1750176638708,-250.0,0.00015068,2]
[366289091,1750176638718,-300.0,0.00015068,2]
[366289092,1750176638727,-150.1,0.00015082,2]
[366289093,1750176638739,-200.0,0.00015082,7]
[366289094,1750176638750,-1198.0,0.00015125,2]
[366289095,1750176638760,-1198.0,0.00015125,2]
[366289096,1750176638770,-166.83,0.00015181,2]
[366289097,1750176638780,-666.0,0.00015231,2]
[366289098,1750176638790,-1000.0,0.0001525,2]
[366289099,1750176638800,-182.25861286,0.000156,2]
[366289100,1750176638810,-797.62,0.0001564,2]
[366289101,1750176638820,-797.09,0.00015641,2]
[366289102,1750176638829,-300.0,0.00015664,2]
[366289103,1750176638839,-3240.84864408,0.00015665,2]
[366289203,1750176639883,-3132.9,0.00015665,2]
[366289205,1750176639895,-3640.12377652,0.00015665,2]
[366289207,1750176639907,-1309.9999,0.00015665,2]
[366289219,1750176640016,-9759.16721656,0.00015665,2]
[366289221,1750176640026,-461.68,0.000157,2]
[366289223,1750176640037,-1957.856,0.00015701,2]
[366289225,1750176640047,-207.4,0.00015701,2]
[366289227,1750176640056,-159.03,0.0001572,2]
[366289228,1750176640066,-4091.0,0.00015729,2]
[366289229,1750176640076,-155.0,0.00015729,2]
[366289230,1750176640085,-884.0,0.00015729,2]
[366289231,1750176640094,-300.9,0.00015755,2]
[366289232,1750176640103,-300.9,0.00015755,2]
[366289233,1750176640113,-2030.296672,0.00015756,2]
[366289234,1750176640124,-547.82512803,0.00015764,2]
[366289235,1750176640133,-500.0,0.00015764,2]
[366289236,1750176640143,-500.0,0.00015764,2]
[366289237,1750176640153,-500.0,0.00015764,2]
[366289238,1750176640163,-500.0,0.00015764,2]
[366289239,1750176640172,-500.0,0.00015764,2]
[366289240,1750176640182,-500.0,0.00015764,2]
[366289241,1750176640191,-500.0,0.00015764,2]
[366289242,1750176640200,-393.39887639,0.00015764,2]
[366289244,1750176640210,-504.08680865,0.00015764,2]
[366289246,1750176640219,-250.56008718,0.00015764,2]
[366289248,1750176640229,-500.0,0.00015764,2]
[366289250,1750176640239,-500.0,0.00015764,2]
[366289252,1750176640248,-340.39209148,0.00015764,2]
[366289254,1750176640259,-322.61979203,0.00015764,2]
[366289256,1750176640268,-463.07396036,0.00015764,2]
[366289258,1750176640279,-500.0,0.00015764,2]
[366289260,1750176640288,-500.0,0.00015764,2]
[366289262,1750176640297,-500.0,0.00015764,2]
[366289263,1750176640306,-185933.23284748,0.00015765,2]
[366289265,1750176640317,-21083.03953716,0.00015776,2]
[366289267,1750176640327,-168.0,0.00015787,2]
[366289269,1750176640337,-180.28466835,0.000158,2]
[366289272,1750176640347,-2105.41764886,0.00015811,2]
[366289274,1750176640357,-2183.31810187,0.00015866,2]
[366289276,1750176640367,-300.9,0.00015878,2]
[366289278,1750176640376,-21083.03953716,0.00015888,2]
[366289279,1750176640385,-1184.37783808,0.000159,2]
[366289282,1750176640399,-294.00441624,0.000159,2]
[366289284,1750176640408,-151.0,0.00015921,2]
[366289286,1750176640418,-151.0,0.00015921,2]
[366289288,1750176640427,-151.0,0.00015921,2]
[366289290,1750176640439,-151.0,0.00015921,2]
[366289292,1750176640448,-668.65185757,0.00015921,2]
[366289294,1750176640458,-154.73056637,0.00015921,2]
[366289296,1750176640468,-2264.10087164,0.00015921,2]
[366289298,1750176640477,-168.0,0.00015925,2]
[366289300,1750176640487,-168.0,0.00015954,2]
[366289302,1750176640497,-151.0,0.00015976,2]
[366289304,1750176640507,-561.92532623,0.00015976,2]
[366289306,1750176640517,-300.9,0.0001599,2]
[366289308,1750176640531,-21083.03953716,0.00015999,2]
[366289310,1750176640540,-245.22,0.00016,2]
[366289312,1750176640551,-1000.0,0.00016,2]
[366289314,1750176640561,-1000.0,0.00016,2]
[366289316,1750176640571,-1000.0,0.00016,2]
[366289318,1750176640581,-1000.0,0.00016,2]
[366289321,1750176640591,-1000.0,0.00016,2]
[366289323,1750176640601,-1000.0,0.00016,2]
[366289325,1750176640610,-1000.0,0.00016,3]
[366289327,1750176640620,-1000.0,0.00016,3]
[366289329,1750176640629,-1000.0,0.00016,2]
[366289330,1750176640639,-444.0,0.00016,3]
[366289333,1750176640648,-1000.0,0.00016,2]
[366289335,1750176640658,-1000.0,0.00016,2]
[366289337,1750176640668,-1000.0,0.00016,2]
[366289339,1750176640678,-1000.0,0.00016,2]
[366289340,1750176640690,-1000.0,0.00016,2]
[366289342,1750176640706,-528.0,0.00016,3]
[366289345,1750176640716,-1000.0,0.00016,2]
[366289347,1750176640728,-1000.0,0.00016,3]
[366289349,1750176640738,-1000.0,0.00016,2]
[366289351,1750176640747,-1000.0,0.00016,2]
[366289353,1750176640757,-1000.0,0.00016,2]
[366289355,1750176640766,-464.0,0.00016,3]
[366289357,1750176640777,-1000.0,0.00016,2]
[366289359,1750176640787,-1000.0,0.00016,3]
[366289361,1750176640796,-374.0,0.00016005,2]
[366289363,1750176640806,-180.28466831,0.00016018,2]
[366289365,1750176640816,-168.0,0.00016019,2]
[366289367,1750176640825,-360.0,0.00016034,2]
[366289369,1750176640834,-1184.377838,0.00016038,2]
[366289371,1750176640844,-444.0,0.00016051,2]
[366289373,1750176640854,-329.0,0.00016051,2]
[366289374,1750176640863,-168.0,0.00016086,2]
[366289377,1750176640873,-21083.03953716,0.0001611,2]
[366289379,1750176640883,-993.0,0.00016115,2]
[366289381,1750176640893,-500.0,0.00016164,2]
[366289383,1750176640902,-1184.377838,0.00016176,2]
[366289385,1750176640912,-10556.75857287,0.000162,2]
[366289387,1750176640921,-300.9,0.00016212,2]
[366289389,1750176640930,-21083.03953716,0.00016222,2]
[366289391,1750176640941,-180.28466831,0.00016235,2]
[366289393,1750176640951,-10556.75857287,0.00016252,2]
[366289395,1750176640960,-320.94759604,0.00016273,2]
[366289397,1750176640970,-500.0,0.00016273,2]
[366289398,1750176640979,-500.0,0.00016273,2]
[366289400,1750176640988,-500.0,0.00016273,2]
[366289402,1750176640998,-500.0,0.00016273,2]
[366289404,1750176641007,-500.0,0.00016273,2]
[366289406,1750176641017,-500.0,0.00016273,2]
[366289408,1750176641027,-209.22916347,0.00016273,2]
[366289410,1750176641036,-500.0,0.00016273,2]
[366289412,1750176641046,-500.0,0.00016273,2]
[366289414,1750176641056,-500.0,0.00016273,2]
[366289416,1750176641065,-308.71290032,0.00016273,2]
[366289418,1750176641075,-150.93,0.00016278,2]
[366289420,1750176641085,-167.74196409,0.00016278,2]
[366289422,1750176641094,-243.14262088,0.00016287,2]
[366289424,1750176641104,-175.19335252,0.00016287,2]
[366289427,1750176641114,-201.05517487,0.00016287,2]
[366289429,1750176641123,-152.15757342,0.00016287,2]
[366289430,1750176641133,-500.0,0.00016287,2]
[366289433,1750176641142,-500.0,0.00016287,2]
[366289435,1750176641153,-449.72270665,0.00016287,2]
[366289437,1750176641162,-500.0,0.00016287,2]
[366289439,1750176641171,-380.93590056,0.00016287,2]
[366289441,1750176641180,-566.32301193,0.00016287,2]
[366289442,1750176641191,-500.0,0.00016287,2]
[366289444,1750176641200,-500.0,0.00016287,2]
[366289446,1750176641210,-500.0,0.00016287,2]
[366289448,1750176641219,-500.0,0.00016287,2]
[366289450,1750176641229,-195818.98587897,0.00016287,2]
[366289468,1750176641394,-15859.37480358,0.00016287,2]
[366289469,1750176641405,-9329.93743045,0.00016287,2]
[366289480,1750176641537,-3308.0645068,0.00016287,2]
[366289482,1750176641549,-521.8,0.00016287,2]
[366289484,1750176641560,-763.75825087,0.00016287,2]
[366289486,1750176641572,-1413.51110107,0.00016287,2]
[366289487,1750176641584,-4493.02829934,0.00016287,2]
[366289581,1750176642585,-677.89211775,0.00016287,2]
[366289585,1750176642596,-883.91756852,0.00016287,2]
[366289601,1750176642733,-410909.80420158,0.00016287,2]
[366289603,1750176642745,-1428.85154885,0.00016287,2]
[366289611,1750176642836,-481.95085199,0.00016287,2]
[366289613,1750176642848,-4540.0,0.00016287,2]
[366289615,1750176642879,-18728.12527814,0.00016287,2]
[366289618,1750176642958,-1053446.30467616,0.00016287,2]
[366289619,1750176642968,-10212.96556033,0.00016287,2]
[366289620,1750176642977,-500.0,0.00016288,2]
[366289621,1750176642986,-500.0,0.00016288,2]
[366289622,1750176642995,-500.0,0.00016288,2]
[366289623,1750176643005,-500.0,0.00016288,2]
[366289624,1750176643014,-500.0,0.00016288,2]
[366289626,1750176643023,-500.0,0.00016288,2]
[366289627,1750176643033,-500.0,0.00016288,2]
[366289629,1750176643042,-500.0,0.00016288,2]
[366289630,1750176643052,-500.0,0.00016288,2]
[366289632,1750176643062,-500.0,0.00016288,2]
[366289635,1750176643072,-500.0,0.00016288,2]
[366289637,1750176643081,-500.0,0.00016288,2]
[366289639,1750176643091,-500.0,0.00016288,2]
[366289640,1750176643101,-973.0,0.00016288,2]
[366289642,1750176643110,-996.0,0.00016288,2]
[366289644,1750176643120,-500.0,0.00016288,2]
[366289646,1750176643130,-500.0,0.00016288,2]
[366289648,1750176643140,-500.0,0.00016288,2]
[366289650,1750176643151,-500.0,0.00016288,2]
[366289653,1750176643163,-500.0,0.00016288,2]
[366289655,1750176643173,-500.0,0.00016288,2]
[366289657,1750176643186,-500.0,0.00016288,2]
[366289659,1750176643196,-500.0,0.00016288,2]
[366289661,1750176643206,-500.0,0.00016288,2]
[366289663,1750176643217,-500.0,0.00016288,2]
[366289665,1750176643226,-500.0,0.00016288,2]
[366289667,1750176643236,-500.0,0.00016288,2]
[366289669,1750176643247,-500.0,0.00016288,2]
[366289671,1750176643257,-500.0,0.00016288,2]
[366289673,1750176643267,-500.0,0.00016288,2]
[366289675,1750176643276,-500.0,0.00016288,2]
[366289677,1750176643286,-500.0,0.00016288,2]
[366289679,1750176643296,-500.0,0.00016288,2]
[366289681,1750176643306,-500.0,0.00016288,2]
[366289683,1750176643316,-500.0,0.00016288,2]
[366289685,1750176643325,-500.0,0.00016288,2]
[366289687,1750176643335,-500.0,0.00016288,2]
[366289689,1750176643344,-500.0,0.00016288,2]
[366289690,1750176643353,-500.0,0.00016288,2]
[366289692,1750176643363,-500.0,0.00016288,2]
[366289694,1750176643372,-500.0,0.00016288,2]
[366289696,1750176643382,-500.0,0.00016288,2]
[366289698,1750176643391,-500.0,0.00016288,2]
[366289700,1750176643401,-500.0,0.00016288,2]
[366289702,1750176643410,-500.0,0.00016288,2]
[366289704,1750176643420,-500.0,0.00016288,2]
[366289706,1750176643429,-500.0,0.00016288,2]
[366289708,1750176643440,-500.0,0.00016288,2]
[366289710,1750176643449,-500.0,0.00016288,2]
[366289712,1750176643459,-500.0,0.00016288,2]
[366289714,1750176643469,-500.0,0.00016288,2]
[366289716,1750176643479,-500.0,0.00016288,2]
[366289718,1750176643489,-500.0,0.00016288,2]
[366289720,1750176643498,-500.0,0.00016288,2]
[366289722,1750176643508,-500.0,0.00016288,2]
[366289724,1750176643517,-500.0,0.00016288,2]
[366289726,1750176643527,-500.0,0.00016288,2]
[366289728,1750176643537,-500.0,0.00016288,2]
[366289730,1750176643547,-500.0,0.00016288,2]
[366289732,1750176643557,-500.0,0.00016288,2]
[366289734,1750176643567,-500.0,0.00016288,2]
[366289736,1750176643577,-500.0,0.00016288,2]
[366289738,1750176643587,-500.0,0.00016288,2]
[366289740,1750176643598,-500.0,0.00016288,2]
[366289742,1750176643608,-500.0,0.00016288,2]
[366289744,1750176643617,-500.0,0.00016288,2]
[366289746,1750176643628,-500.0,0.00016288,2]
[366289748,1750176643637,-500.0,0.00016288,2]
[366289750,1750176643646,-500.0,0.00016288,2]
[366289752,1750176643656,-500.0,0.00016288,2]
[366289769,1750176643666,-500.0,0.00016288,2]
[366289775,1750176643874,-500.0,0.00016288,2]
[366289777,1750176643884,-500.0,0.00016288,2]
[366289779,1750176643894,-500.0,0.00016288,2]
[366289781,1750176643904,-500.0,0.00016288,2]
[366289783,1750176643913,-500.0,0.00016288,2]
[366289785,1750176643923,-500.0,0.00016288,2]
[366289787,1750176643933,-500.0,0.00016288,2]
[366289789,1750176643943,-500.0,0.00016288,2]
[366289791,1750176643952,-500.0,0.00016288,2]
[366289793,1750176643962,-500.0,0.00016288,2]
[366289796,1750176643973,-500.0,0.00016288,2]
[366289798,1750176643982,-500.0,0.00016288,2]
[366289799,1750176643992,-500.0,0.00016288,2]
[366289802,1750176644002,-500.0,0.00016288,2]
[366289804,1750176644011,-500.0,0.00016288,2]
[366289806,1750176644021,-500.0,0.00016288,2]
[366289808,1750176644031,-500.0,0.00016288,2]
[366289810,1750176644041,-500.0,0.00016288,2]
[366289812,1750176644050,-500.0,0.00016288,2]
[366289814,1750176644061,-500.0,0.00016288,2]
[366289816,1750176644071,-500.0,0.00016288,2]
[366289818,1750176644080,-500.0,0.00016288,2]
[366289820,1750176644090,-500.0,0.00016288,2]
[366289822,1750176644100,-500.0,0.00016288,2]
[366289824,1750176644109,-500.0,0.00016288,2]
[366289826,1750176644119,-500.0,0.00016288,2]
[366289827,1750176644128,-500.0,0.00016288,2]
[366289830,1750176644138,-500.0,0.00016288,2]
[366289831,1750176644149,-500.0,0.00016288,2]
[366289833,1750176644159,-500.0,0.00016288,2]
[366289835,1750176644170,-1236.442746,0.00016297,2]
[366289838,1750176644181,-802.0,0.00016298,2]
[366289840,1750176644191,-883.39446899,0.000163,2]
[366289842,1750176644201,-10556.75857287,0.00016304,2]
[366289844,1750176644210,-2000.0,0.00016306,2]
[366289846,1750176644220,-500.0,0.00016306,2]
[366289848,1750176644230,-2000.0,0.00016306,2]
[366289850,1750176644240,-2000.0,0.00016307,2]